[Event "Romanian Rapid Open 2022"]
[Site "Sebes"]
[Date "2022.12.02"]
[Round "5.19"]
[White "Stan, Luciana-Gabriela"]
[Black "Dragomirescu, Angela"]
[Result "0-1"]
[ECO "A21"]
[WhiteElo "1823"]
[BlackElo "2104"]
[Annotator "TA"]
[PlyCount "56"]
[EventDate "2022.12.02"]
[EventType "rapid"]
[EventCountry "ROU"]
[SourceTitle "playchess.com"]
[Source "ChessBase"]
[SourceQuality "1"]
[TimeControl "600+5"]

{[%evp 13,56,0,6,-13,-8,-30,22,10,27,19,14,6,50,0,0,7,7,0,-12,0,1,-11,-3,-11,-7,-197,-192,-197,-192,-202,-212,-260,-231,-293,-248,-529,-336,-344,-339,-337,-307,-940,-679,-895,-951]} 1. Nf3 {[%emt 0:10:10]} d6 {[%emt 0:10:10]} 2. c4 {[%emt 0:00:05]} e5 {[%emt 0:00:05][%cal Be7e5,Be5e4][%mdl 32]} 3. d4 {[%emt 0:00:05]} e4 {[%emt 0:00:05]} 4. Ng5 {[%emt 0:00:05]} f5 {[%emt 0:00:05]} 5. Nc3 {[%emt 0:00:05]} Be7 {[%emt 0:00:05]} 6. Nh3 {[%emt 0:00:05]} Nf6 {[%emt 0:00:05]} 7. g3 {[%emt 0:00:05]} c6 {[%emt 0:00:05]} 8. Qb3 {[%emt 0:00:05] 8.d5 is a critical line. A21: English Opening: 1...e5 2 Nc3.} Na6 {[%emt 0:00:05]} 9. Bg2 {[%emt 0:00:05]} Nc7 {[%emt 0:00:05]} (9... O-O $142) 10. O-O {[%emt 0:00:05] The position is equal.} O-O {[%emt 0:00:05]} 11. d5 {[%emt 0:00:05]} cxd5 {[%emt 0:00:05]} 12. cxd5 {[%emt 0:00:05] [#]} Kh8 $146 {[%emt 0:00:05][%cal Ob7b5]} ({Predecessor:} 12... Qe8 13. Be3 Ng4 14. Bxa7 Rxa7 15. Qb6 Ra6 16. Qxc7 g5 17. Qc4 Qh5 18. Rac1 f4 19. Qxe4 {0-1 (26) Debnar,L (2290)-Janko,M (2271) Slovakia 2011}) 13. Be3 {[%emt 0:00:05]} Ng4 {[%emt 0:00:05]} 14. Bd4 {[%emt 0:00:05]} Bf6 {[%emt 0:00:05] Against f3} 15. Rad1 {[%emt 0:00:05]} Bxd4 {[%emt 0:00:05]} 16. Rxd4 {[%emt 0:00:05]} Qf6 {[%emt 0:00:05]} 17. Rfd1 {[%emt 0:00:05]} Na6 {[%emt 0:00:05]} 18. Qc2 $1 {[%emt 0:00:05]} Bd7 $36 {[%emt 0:00:05][%mdl 2048] Black is more active.} 19. f3 $2 {[%emt 0:00:05] [#] This move loses the game for White.} (19. Qd2 $11) 19... Ne3 $19 {[%emt 0:00:05][%csl LRc2,LRd1]} 20. Qd2 {[%emt 0:00:05]} Nxd1 {[%emt 0:00:05]} 21. Qxd1 {[%emt 0:00:05]} exf3 {[%emt 0:00:05]} 22. Bxf3 {[%emt 0:00:05]} Rae8 {[%emt 0:00:05]} 23. Bg2 {[%emt 0:00:05]} Nc5 {[%emt 0:00:05]} 24. b4 $2 {[%emt 0:00:05] [#]} (24. Qd2) 24... Ne4 {[%emt 0:00:05]} 25. Nxe4 {[%emt 0:00:05]} fxe4 26. Nf4 {[%emt 0:00:05]} g5 {[%emt 0:00:10]} 27. Nh5 {[%emt 0:00:05]} (27. Ne6 Bxe6 28. dxe6) 27... Qf2+ {[%emt 0:00:05]} 28. Kh1 {[%emt 0:00:05]} Bg4 {[%emt 0:00:05][%csl LRe2,LRh5] Weighted Error Value: White=0.63/Black=0.26 (precise)} 0-1

[Event "Romanian Rapid Open 2022"]
[Site "Sebes"]
[Date "2022.12.02"]
[Round "5.20"]
[White "Teodorescu, Razvan"]
[Black "Matasaru, Stephanie"]
[Result "0-1"]
[ECO "E57"]
[WhiteElo "2118"]
[BlackElo "1975"]
[Annotator "TA"]
[PlyCount "88"]
[EventDate "2022.12.02"]
[EventType "rapid"]
[EventCountry "ROU"]
[SourceTitle "playchess.com"]
[Source "ChessBase"]
[SourceQuality "1"]
[TimeControl "600+5"]

{[%evp 22,87,44,-8,51,0,0,9,214,198,193,58,71,32,157,171,161,161,230,225,238,103,85,104,99,59,58,0,-7,-6,0,0,0,0,-7,0,-16,-50,0,0,0,-14,16,0,0,0,0,0,0,0,76,66,233,12,148,-29983,-29984,-29994,-29995,-29996,-29997,-29997,-29997,-29997,-29996,-29998,-29999,-29999]} 1. d4 {[%emt 0:00:01]} d5 {[%emt 0:00:01]} 2. c4 {[%emt 0:00:02]} dxc4 {[%emt 0:00:02]} 3. Nf3 {[%emt 0:00:04]} Nf6 {[%emt 0:00:01]} 4. e3 {[%emt 0:00:07]} e6 {[%emt 0:00:02]} 5. Bxc4 {[%emt 0:00:05]} c5 {[%emt 0:00:01]} 6. O-O {[%emt 0:00:11]} cxd4 {[%emt 0:00:02]} 7. exd4 {[%emt 0:00:01]} Be7 {[%emt 0:00:15]} 8. Nc3 {[%emt 0:00:07]} O-O {[%emt 0:00:26]} 9. Re1 {[%emt 0:00:15]} Nc6 {[%emt 0:00:09]} 10. a3 {[%emt 0:00:44]} b6 {[%emt 0:01:24]} 11. Bf4 {[%emt 0:01:28]} Bb7 {[%emt 0:01:00]} 12. Qd3 {[%emt 0:00:19]} (12. Ba2 $14) 12... Rc8 {[%emt 0:00:38] E57: Nimzo-Indian: Rubinstein: Main Line: 7...Nc6 8 a3 dxc4 9 Bxc4 cxd4.} (12... Na5 $11) 13. Rad1 {[%emt 0:07:46] Black should prevent Ng5.} (13. Ba2 $5) 13... Na5 {[%emt 0:01:18]} 14. Ba2 {[%emt 0:00:00] [#] With the idea b4.} a6 $146 {[%emt 0:00:24]} (14... Nd5 $11 {and Black stays safe.} 15. Bd2 Nxc3 16. Bxc3 Bd5 17. Bxd5 Qxd5) ({Predecessor:} 14... Nd5 15. Bd2 Nxc3 16. Bxc3 Bf6 17. Ne5 Bd5 18. Bb1 g6 19. Qh3 Bg7 20. Rd3 Nc4 21. Qg4 {1-0 (56) Zarubitski,V (2446)-Ansat,A (2333) Cheliabinsk 2021}) 15. b4 $18 {[%emt 0:00:00]} Nc6 {[%cal Oe7b4]} 16. Bb1 {[%emt 0:00:00]} ({White must play} 16. d5 $18) 16... g6 $14 17. h3 {[%emt 0:00:20]} Nxb4 {[%emt 0:01:26]} 18. axb4 $16 {[%emt 0:00:00]} Bxb4 {[%emt 0:00:05] [#]} 19. Bd2 {[%emt 0:00:10]} Bxc3 {[%emt 0:00:35]} (19... b5 $142 20. Ne5 Qd6) 20. Bxc3 $18 {[%emt 0:00:00]} Be4 21. Qd2 {[%emt 0:00:10]} (21. Rxe4 $18 {and the rest is easy.} Nxe4 22. Bb4 (22. Qxa6 $2 {too greedy.} Nxc3 23. Re1 b5 $19)) 21... Bxf3 $16 {[%emt 0:00:56]} 22. gxf3 {[%emt 0:00:00]} Nd5 {[%emt 0:00:21]} 23. Bb2 {[%emt 0:00:00]} Qh4 {[%emt 0:00:20]} 24. Re4 {Inhibits Nf4.} ({White should play} 24. Bd3 $1 $14) 24... Qxh3 $11 {[%emt 0:00:35]} 25. Ba2 {[%emt 0:00:00]} Qxf3 {[%emt 0:00:05]} (25... Rfd8 {is more complex.} 26. Qe2 a5 27. Rg4 Rb8) 26. Bxd5 exd5 {[%emt 0:00:01]} 27. Re3 {[%emt 0:00:00]} (27. Re5 {keeps more tension.} Rfe8 28. Rc1 b5 29. Rc5) 27... Qg4+ {[%emt 0:00:08]} 28. Rg3 {[%emt 0:00:00]} Qf5 {[%emt 0:00:15] Strongly threatening ...Rc2.} 29. Ba3 {[%emt 0:00:00]} (29. Qd3 {simplifies} Qxd3 30. Rgxd3 b5 31. Ra1) 29... Rc2 {[%emt 0:00:23]} (29... Rfe8 $15) 30. Qe3 $36 {[%emt 0:00:00][%mdl 2048] Black is under pressure.} Rfc8 {[%emt 0:00:09][%cal Oc2c3]} 31. Rd3 {[%emt 0:00:14] Inhibits R2c3.} Ra2 {[%emt 0:00:58]} 32. Bd6 {[%emt 0:00:04][%mdl 1024] White has compensation.} (32. Qe1 $5 {[%cal Rd3f3]}) 32... Ra1+ {[%emt 0:00:11]} 33. Kg2 {[%emt 0:00:05]} Qh5 {[%emt 0:00:16][%csl Ga1][%cal Rh5h1]} 34. Rh3 {[%emt 0:00:20] Prevents Qh1+.} Qg4+ {[%emt 0:00:02]} 35. Bg3 {[%emt 0:00:03]} h5 {[%emt 0:00:11]} (35... Rcc1 $11 {keeps the balance.} 36. Qe8+ Kg7 37. Qe5+ Kg8 38. Qe8+ (38. Qxd5 $2 {is the wrong capture.} Rg1+ 39. Kh2 Rh1+ 40. Qxh1 Rxh1+ 41. Kxh1 Qe4+ 42. Kh2 Qxd3 $19) 38... Kg7 39. Qe5+ Kg8 40. Qe8+ (40. Qxd5 $2 Rg1+ 41. Kh2 Rh1+ 42. Qxh1 Rxh1+ 43. Kxh1 Qe4+ 44. Kh2 Qxd3 $19)) 36. Rh4 $16 {[%emt 0:00:05]} Qd7 {[%emt 0:00:04] [#]} (36... Qf5 $14) 37. Be5 $2 {[%emt 0:00:06]} (37. Rxh5 $3 $18 {[%cal Oe3h6][%mdl 512] Qh6! is the strong threat.} Rcc1 38. Qg5) 37... Rcc1 {[%emt 0:00:03]} (37... f6 $1 $11 {remains equal.}) 38. Qh6 $4 {[%emt 0:00:28][%mdl 8192]} (38. Bh2 $16) 38... Rg1+ {[%emt 0:00:28] Black mates.} 39. Kf3 {[%emt 0:00:05]} Qf5+ {[%emt 0:00:05]} 40. Ke3 Rge1+ {[%emt 0:00:05]} 41. Kd2 {[%emt 0:00:10]} Qxf2+ {[%emt 0:00:05]} 42. Kc3 Rec1+ {[%emt 0:00:05]} 43. Kb4 {[%emt 0:00:10]} Qb2+ {[%emt 0:00:05]} 44. Rb3 {[%emt 0:00:05]} Rc4# {[%emt 0:00:05] Weighted Error Value: White=0.43/Black=0.32} 0-1

[Event "Romanian Rapid Open 2022"]
[Site "Sebes"]
[Date "2022.12.02"]
[Round "5.21"]
[White "Negrean, Andrei"]
[Black "Sfarlog, Tudor-Vlad"]
[Result "0-1"]
[ECO "B08"]
[WhiteElo "1991"]
[BlackElo "2283"]
[Annotator "TA"]
[PlyCount "140"]
[EventDate "2022.12.02"]
[EventType "rapid"]
[EventCountry "ROU"]
[SourceTitle "playchess.com"]
[Source "ChessBase"]
[SourceQuality "1"]
[TimeControl "600+5"]

{[%evp 12,139,41,26,25,16,8,0,2,0,9,14,20,0,8,0,0,0,0,0,18,0,0,0,42,41,41,33,33,43,41,31,47,0,0,-60,-35,-44,-28,-25,-22,-30,-34,-34,-32,-33,-47,-346,-349,-351,-351,-487,-479,-472,-446,-900,-923,-1000,-987,-860,-648,-528,-310,-289,-288,-295,0,-166,0,-309,-311,-305,-270,-250,-263,-295,-265,-267,-254,-694,-136,-270,-270,-350,-338,-805,-806,-883,-691,-1462,-1314,-5612,-5732,-29982,-29983,-29980,-29980,-29986,-29987,-29987,-29988,-29991,-29992,-29992,-29990,-29990,-29991,-29991,-29992,-29994,-29989,-29992,-29989,-29988,-29989,-29990,-29991,-29993,-29994,-29994,-29995,-29995,-29996,-29996,-29997,-29997,-29998,-29998,-29999,-29999]} 1. d4 {[%emt 0:00:03]} g6 {[%emt 0:00:05]} 2. e4 {[%emt 0:00:03]} Bg7 {[%emt 0:00:02]} 3. Nc3 {[%emt 0:00:08]} d6 {[%emt 0:00:01]} 4. Nf3 {[%emt 0:00:04]} Nf6 {[%emt 0:00:01]} 5. h3 {[%emt 0:00:03]} O-O {[%emt 0:00:03]} 6. Be3 {[%emt 0:00:02]} Nc6 {[%emt 0:00:18]} 7. d5 {[%emt 0:00:39]} Nb8 {[%emt 0:00:03] B08: Pirc Defence: Classical System.} 8. Be2 {[%emt 0:00:48]} c6 {[%emt 0:01:18]} 9. dxc6 {[%emt 0:00:23] [#]} bxc6 $146 {[%emt 0:01:42] The position is equal.} ({Predecessor:} 9... Nxc6 10. Qd2 Bd7 11. Bh6 Qa5 12. O-O Rfc8 13. Bxg7 Kxg7 14. Rad1 a6 15. Rfe1 Be8 {½-½ (72) De Coverly,R (1998)-Pleasants,A (2066) Frome 2017}) 10. O-O {[%emt 0:01:55]} Qa5 {[%emt 0:00:02]} 11. Qd2 {[%emt 0:00:44]} Ba6 {[%emt 0:00:30]} 12. Rfe1 {[%emt 0:01:38]} Bxe2 {[%emt 0:00:23]} 13. Rxe2 {[%emt 0:00:07]} (13. Qxe2 {simplifies} Nbd7 14. Bd2 Qc7 15. Rad1) 13... Rd8 {[%emt 0:01:01]} 14. Bh6 {[%emt 0:00:57]} Bxh6 {[%emt 0:00:50]} 15. Qxh6 {[%emt 0:00:05]} Nbd7 {[%emt 0:00:09] Prevents e5.} 16. Rae1 {[%emt 0:00:39]} e5 {[%emt 0:01:14]} 17. Qd2 {[%emt 0:00:37]} Nc5 {[%emt 0:00:12] [#]} 18. Nd5 $1 {[%emt 0:00:47]} Qxd2 {[%emt 0:00:01]} 19. Nxf6+ {[%emt 0:00:03]} Kg7 {[%emt 0:00:01]} 20. Nh5+ {[%emt 0:00:32]} gxh5 {[%emt 0:00:01]} 21. Rxd2 {[%emt 0:00:01]} Rab8 {[%emt 0:00:18]} 22. c4 {[%emt 0:00:24]} (22. b3 $1 $14) 22... Kf6 {[%emt 0:00:16]} 23. h4 {[%emt 0:00:46]} ({White should play} 23. b3 $11) 23... a5 {[%emt 0:00:13]} 24. Nh2 {[%emt 0:00:20]} a4 {[%emt 0:00:05]} 25. f3 {[%emt 0:00:08]} Rb4 {[%emt 0:00:12]} 26. Rc1 {[%emt 0:00:05]} Ne6 {[%emt 0:00:22]} 27. Nf1 {[%emt 0:00:05]} Nd4 {[%emt 0:00:01]} 28. Ne3 {[%emt 0:00:12]} Rdb8 {[%emt 0:00:06]} 29. c5 $2 {[%emt 0:00:04][%mdl 8192]} (29. Rb1 $15) 29... Rxb2 $19 {[%emt 0:00:12]} 30. Rxb2 {[%emt 0:00:02]} Rxb2 {[%emt 0:00:01][%mdl 4096] Endgame KRN-KRN} 31. Rc4 {[%emt 0:00:08]} Rxa2 {[%emt 0:00:19]} 32. cxd6 {[%emt 0:00:02]} Ke6 {[%emt 0:00:00] Against Nf5} 33. Nf5 {[%emt 0:00:16]} (33. f4 $142 Kxd6 34. Kf1) 33... Nxf5 {[%emt 0:00:05]} 34. exf5+ {[%emt 0:00:00]} Kxd6 {[%emt 0:00:01] KR-KR} 35. Rb4 {[%emt 0:00:00]} Kc5 {[%emt 0:00:05]} 36. Rb7 {[%emt 0:00:02]} a3 {[%emt 0:00:04]} 37. Rxf7 {[%emt 0:00:04]} Kb6 {[%emt 0:00:24] Prevents Ra7.} 38. Rf8 {[%emt 0:00:07]} Kb7 {[%emt 0:01:12] Prevents Ra8.} ({Black should try} 38... Rd2 $19 39. Ra8 a2) 39. Rf7+ $2 {[%emt 0:00:03] [#]} (39. f6 $1 $11 {and White stays safe.} Rxg2+ 40. Kxg2) 39... Kb6 {[%emt 0:00:01]} (39... Ka6 $142 $1 40. Rf8 Ra1+ 41. Kh2 a2 42. Ra8+ Kb7) 40. Rf8 $1 {[%emt 0:00:01]} Rd2 {[%emt 0:00:07]} 41. Ra8 {[%emt 0:00:05]} a2 {[%emt 0:00:01]} 42. Kh2 {[%emt 0:00:11] [#]} c5 $1 {[%emt 0:00:09] aiming for ...c4.} 43. f6 {[%emt 0:00:04]} Rd6 {[%emt 0:00:02] ...c4 is the strong threat.} 44. Rxa2 {[%emt 0:00:09]} Rxf6 {[%emt 0:00:01]} 45. Re2 $2 {[%emt 0:00:03]} (45. Kg3) 45... Rf5 $2 {[%emt 0:00:11]} (45... c4 $19 {is more deadly.} 46. Kg3 Rc6 47. Rxe5 c3) 46. Rb2+ {[%emt 0:00:09]} (46. Kg1 $17) 46... Kc6 {[%emt 0:00:01]} 47. Rc2 {[%emt 0:00:00]} Rf4 {[%emt 0:00:04]} 48. Re2 $2 {[%emt 0:00:07]} (48. Kg1) 48... Kd5 {[%emt 0:00:03] Hoping for ...c4.} (48... Rxh4+ $2 {too greedy.} 49. Kg1 $19) 49. Rd2+ {[%emt 0:00:05]} Rd4 {[%emt 0:00:02]} 50. Ra2 {[%emt 0:00:03]} c4 {[%emt 0:00:10][%cal Oc4c3] Strongly threatening ...c3!} 51. Ra7 {[%emt 0:00:06]} c3 {[%emt 0:00:07] ( -> ...c2)} 52. Rc7 {[%emt 0:00:07] Prevents c2.} Rc4 {[%emt 0:00:03] Black mates.} 53. Rd7+ {[%emt 0:00:01]} Kc5 {[%emt 0:00:07]} 54. Rc7+ {[%emt 0:00:02]} Kd4 {[%emt 0:00:06]} 55. Rd7+ {[%emt 0:00:01]} Ke3 {[%emt 0:00:01]} 56. Ra7 {[%emt 0:00:07]} c2 {[%emt 0:00:03]} 57. Ra3+ {[%emt 0:00:02]} Kd4 {[%emt 0:00:20]} 58. Ra1 {[%emt 0:00:05]} c1=Q {[%emt 0:00:02]} 59. Rxc1 {[%emt 0:00:01]} Rxc1 {[%emt 0:00:01] KR-K3P} 60. Kg3 {[%emt 0:00:01]} Rh1 {[%emt 0:00:02]} 61. f4 {[%emt 0:00:02]} exf4+ {[%emt 0:00:04]} 62. Kxf4 {[%emt 0:00:01]} Rxh4+ {[%emt 0:00:01] KR-KP} 63. Kg5 {[%emt 0:00:03]} Rg4+ {[%emt 0:00:02]} 64. Kxh5 {[%emt 0:00:02]} Rxg2 {[%emt 0:00:01] KR-K} 65. Kh6 {[%emt 0:00:01]} Ke5 {[%emt 0:00:01][%cal Bd4e5,Be5f4,Bf4f5,Bf5f6,Bf6f7][%mdl 32]} 66. Kh5 {[%emt 0:00:02]} Kf4 {[%emt 0:00:04][%cal Rg2h2]} 67. Kh6 {[%emt 0:00:01]} Kf5 {[%emt 0:00:01]} 68. Kxh7 {[%emt 0:00:02]} Kf6 {[%emt 0:00:01]} 69. Kh8 {[%emt 0:00:02]} Kf7 {[%emt 0:00:01][%cal Rg2h2]} 70. Kh7 {[%emt 0:00:02]} Rh2# {[%emt 0:00:01] Weighted Error Value: White=0.68/Black=0.28 (precise)} 0-1

[Event "Romanian Rapid Open 2022"]
[Site "Sebes"]
[Date "2022.12.02"]
[Round "5.22"]
[White "Arandjelovic, Aleksandar Z"]
[Black "Cosma, Elena-Luminita"]
[Result "0-1"]
[ECO "B14"]
[WhiteElo "1899"]
[BlackElo "2244"]
[Annotator "TA"]
[PlyCount "70"]
[EventDate "2022.12.02"]
[EventType "rapid"]
[EventCountry "ROU"]
[SourceTitle "playchess.com"]
[Source "ChessBase"]
[SourceQuality "1"]
[TimeControl "600+5"]

{[%evp 16,70,20,0,6,0,3,0,0,-54,-41,-57,-67,-64,-64,-67,-55,-93,-84,-85,-59,-99,-84,-99,-87,-95,-93,-105,-66,-112,-106,-109,-109,-145,-115,-173,-60,-62,-61,-62,-60,-53,-56,-163,-158,-166,-175,-179,-170,-166,-140,-172,-133,-143,-102,-127,-121]} 1. d4 {[%emt 0:00:02]} d5 {[%emt 0:00:01]} 2. c4 {[%emt 0:00:01]} e6 {[%emt 0:00:01]} 3. Nc3 {[%emt 0:00:01]} Nf6 {[%emt 0:00:02]} 4. cxd5 {[%emt 0:00:01]} Nxd5 {[%emt 0:00:03]} 5. e3 {[%emt 0:00:02]} c5 {[%emt 0:00:02]} 6. Nf3 {[%emt 0:00:02]} Nc6 {[%emt 0:00:12]} 7. Bb5 {[%emt 0:00:25]} cxd4 {[%emt 0:00:52]} 8. exd4 {[%emt 0:00:04]} Bb4 {[%emt 0:00:13]} 9. Bd2 {[%emt 0:00:06]} O-O {[%emt 0:00:02] B14: Caro-Kann: Panov-Botvinnik Attack with 5...e6 and 5...g6.} 10. O-O {[%emt 0:00:12]} Nce7 {[%emt 0:00:19] [#]} 11. Ne5 $146 {[%emt 0:01:09]} (11. Bd3 {simplifies} b6 12. Qe1 Bd6 13. Nxd5 exd5 14. Qb1) ({Predecessor:} 11. a3 Bd6 12. Bd3 b6 13. Re1 Bb7 14. Ne4 Bf4 15. Rc1 Nf5 16. Bb1 Rc8 17. Bxf4 Nxf4 {0-1 (59) Edouard,R (2554)-Andersen,M (2604) Germany 2022}) 11... Nf5 {[%emt 0:00:34] The position is equal.} 12. Qg4 {[%emt 0:01:11]} (12. Nxd5 $11 Bxd2 13. Nc3) 12... Nf6 $15 {[%emt 0:00:04][%csl LRd4,LRg4]} 13. Qh3 {[%emt 0:00:25]} Qxd4 {[%emt 0:00:22]} 14. Nf3 {[%emt 0:00:23]} Qg4 {[%emt 0:00:40]} (14... Qb6 {is more complex.} 15. Bd3 Rd8 16. Ne5 Qd4) 15. Qxg4 {[%emt 0:00:07]} Nxg4 {[%emt 0:00:01]} 16. h3 {[%emt 0:00:19]} Nf6 {[%emt 0:00:01]} 17. g4 {[%emt 0:00:27]} Ne7 {[%emt 0:00:04][%cal Bf5e7,Be7d5,Bd5f6][%mdl 32]} 18. a3 {[%emt 0:00:46]} Bd6 {[%emt 0:00:02]} 19. Bg5 {[%emt 0:00:20]} Ned5 {[%emt 0:00:20]} 20. Bxf6 {[%emt 0:01:35]} Nxf6 {[%emt 0:00:03]} 21. Rfd1 {[%emt 0:00:23]} Bf4 {[%emt 0:00:43]} 22. Ne2 {[%emt 0:00:19]} (22. g5 $15 Nh5 23. h4) 22... Bc7 {[%emt 0:00:28]} 23. Nc3 {[%emt 0:00:47]} h6 {[%emt 0:00:17]} 24. Rd2 {[%emt 0:00:32]} Bf4 {[%emt 0:00:19]} 25. Rd3 {[%emt 0:00:15]} (25. Rd4 $17 e5 26. Rd3) 25... e5 {[%emt 0:00:15]} (25... a6 $19 26. Ba4 b5) 26. Re1 {[%emt 0:00:28]} a6 {[%emt 0:00:20]} 27. Ba4 {[%emt 0:00:01]} b5 {[%emt 0:00:26]} 28. Bb3 {[%emt 0:00:04]} Bb7 {[%emt 0:02:37] A strong pair of Bishops.} 29. Nd5 {[%emt 0:00:30]} (29. Nxe5 $15 Rae8 30. Nf3) 29... Nxd5 $19 {[%emt 0:00:14]} 30. Bxd5 {[%emt 0:00:02]} Rad8 {[%emt 0:00:39]} 31. Red1 {[%emt 0:00:34]} Bxd5 {[%emt 0:00:12]} ({But not} 31... e4 {[#]} 32. Bxf7+ $1 Kxf7 33. Rxd8 Rxd8 34. Rxd8 $14) 32. Rxd5 {[%emt 0:00:02]} Rxd5 33. Rxd5 {[%emt 0:00:01]} e4 {[%emt 0:00:03]} 34. Nd4 {[%emt 0:00:16]} Rc8 {[%emt 0:00:44]} 35. Nf5 {[%emt 0:00:16] [#] Hoping for Ne7+.} Rc1+ {[%emt 0:00:23] Weighted Error Value: White=0.19 (very precise) /Black=0.12 (very precise)} 0-1

[Event "Romanian Rapid Open 2022"]
[Site "Sebes"]
[Date "2022.12.02"]
[Round "5.23"]
[White "Tariceanu, Victor"]
[Black "Filip, Andrei"]
[Result "0-1"]
[ECO "C00"]
[WhiteElo "1720"]
[BlackElo "2331"]
[Annotator "TA"]
[PlyCount "86"]
[EventDate "2022.12.02"]
[EventType "rapid"]
[EventCountry "ROU"]
[SourceTitle "playchess.com"]
[Source "ChessBase"]
[SourceQuality "1"]
[TimeControl "600+5"]

{[%evp 9,86,18,10,14,7,0,-9,-21,-6,-11,-8,-131,-128,-129,0,0,0,-6,13,-11,-14,0,0,0,8,-7,42,-5,-9,-22,8,-57,-43,-74,-66,-55,-69,-99,0,0,0,0,0,0,39,37,37,0,30,0,0,0,0,0,0,-273,-277,-255,-239,-284,-272,-1204,-1207,-1054,-1023,-29985,-29986,-29986,-29987,-29985,-1196,-1621,-1509,-4894,-4882,-3078,-1418,-29987,-1187]} 1. e4 {[%emt 0:00:03]} c5 {[%emt 0:00:00]} 2. g3 {[%emt 0:00:01]} e6 {[%emt 0:00:29]} 3. Bg2 {[%emt 0:00:02]} d5 {[%emt 0:00:13]} 4. exd5 {[%emt 0:00:02]} exd5 {[%emt 0:00:01]} 5. d4 {[%emt 0:00:08]} cxd4 {[%emt 0:00:51]} 6. Qxd4 {[%emt 0:00:03] C00: French: Unusual White 2nd moves.} Nf6 {[%emt 0:00:01]} 7. Bg5 {[%emt 0:00:21] [#]} Nc6 $146 {[%emt 0:00:32]} ({Predecessor:} 7... Be7 8. Nc3 Nc6 9. Qd2 d4 10. Bxf6 Bxf6 11. Nd5 O-O 12. Nxf6+ Qxf6 13. O-O-O Bf5 14. Ne2 Rfd8 15. Nf4 Rac8 16. Nd3 {½-½ (31) Nyta,Z (2052)-Karlik,V (2284) Valasska Bystrice 2013}) 8. Qe3+ {[%emt 0:00:18] The position is equal.} Be6 $1 {[%emt 0:00:17] Threatens to win with ...d4.} 9. Ne2 {[%emt 0:00:31]} Qa5+ {[%emt 0:01:08]} 10. c3 {[%emt 0:00:39]} (10. Qd2 $11) 10... Bc5 $17 {[%emt 0:00:48]} 11. Qd2 {[%emt 0:00:13]} Be7 {[%emt 0:00:55] Black is more active.} (11... Qb6 $1 $17 12. Be3 Bxe3 13. fxe3 Ne5) 12. O-O $11 {[%emt 0:00:13]} O-O {[%emt 0:00:09]} 13. a4 {[%emt 0:00:38]} h6 {[%emt 0:00:03]} 14. b4 {[%emt 0:00:19]} Qd8 {[%emt 0:00:10]} 15. Be3 {[%emt 0:00:10]} Ne4 {[%emt 0:00:10]} 16. Qb2 {[%emt 0:00:23]} Bf6 {[%emt 0:00:27]} 17. Rd1 {[%emt 0:00:29] And now Bxe4 would win.} Qc7 {[%emt 0:00:33]} (17... Qe8 $11) 18. f3 {[%emt 0:00:25]} (18. Nd2 $14) 18... Nd6 {[%emt 0:00:03] White should prevent ...Nc4.} 19. Na3 {[%emt 0:00:02]} Ne5 {[%emt 0:00:08]} (19... a5 $5 {[%cal Ra5b4]} 20. b5 (20. Nb5 Nxb5 21. axb5 Ne5 $15) 20... Ne5 $11) 20. Bf4 {[%emt 0:00:19]} (20. Bd4 $11) 20... Qb6+ {[%emt 0:00:30]} (20... Nec4 {simplifies} 21. Nxc4 Nxc4 22. Bxc7 Nxb2 23. Rd2 Nc4) 21. Kh1 {[%emt 0:00:17]} Nec4 {[%emt 0:00:13]} 22. Nxc4 {[%emt 0:00:15]} Nxc4 {[%emt 0:00:01]} 23. Qc2 {[%emt 0:00:03]} Ne3 {[%emt 0:00:22] Inhibits a5.} (23... a5 $1 $17 24. b5 Rfe8) 24. Bxe3 {[%emt 0:00:07]} Qxe3 {[%emt 0:00:02]} 25. Nd4 {[%emt 0:00:12]} Rac8 {[%emt 0:00:15]} 26. Rd3 {[%emt 0:00:09]} Qg5 {[%emt 0:00:32]} 27. f4 {[%emt 0:00:20]} Qg6 {[%emt 0:00:06]} 28. Qd2 {[%emt 0:00:18]} Rc4 {[%emt 0:00:40]} 29. Rf1 {[%emt 0:00:27] aiming for f5.} Bxd4 {[%emt 0:00:51]} 30. Rxd4 {[%emt 0:00:06]} Rfc8 {[%emt 0:00:12]} 31. Rc1 {[%emt 0:00:36]} ({Much worse is} 31. Bxd5 Bxd5+ 32. Rxd5 Rxc3 33. Rd8+ Rxd8 34. Qxd8+ Kh7 $15) 31... Qf6 {[%emt 0:00:25][%cal Of6d4] ...Qxd4! is the strong threat.} 32. Rd3 {[%emt 0:00:42][%mdl 8192]} (32. Bxd5 $2 {too greedy.} Rxd4 33. cxd4 Rxc1+ 34. Qxc1 Bxd5+ $19) (32. Rxc4 $11 Rxc4 33. Bxd5 Bxd5+ 34. Qxd5 Rxc3 35. Rxc3 Qxc3 36. b5) 32... d4 $1 $19 {[%emt 0:00:37]} 33. Bxb7 {[%emt 0:00:54]} dxc3 {[%emt 0:00:22]} 34. Qf2 {[%emt 0:00:50]} R8c7 {[%emt 0:00:15]} 35. Qxa7 $2 {[%emt 0:00:35]} (35. Bf3) 35... Bc8 {[%emt 0:00:08]} 36. Qa8 {[%emt 0:00:45]} Rxb7 {[%emt 0:00:02]} 37. Re3 {[%emt 0:00:11]} Qc6+ {[%emt 0:00:07]} 38. Kg1 {[%emt 0:00:02]} Qb6 {[%emt 0:00:07]} 39. Rce1 {[%emt 0:00:03]} Rb8 {[%emt 0:00:18]} (39... c2 $142 40. Qa6 Qxa6 41. Re8+ Kh7 42. f5 c1=Q 43. b5 {[#]} Rc2 $1 44. R8e2 Rxe2 45. Rxc1 Qb6+ 46. Kh1 Qf2 $1 47. Rxc8 Qxh2#) 40. Qd5 {[%emt 0:00:18]} Be6 {[%emt 0:00:01]} 41. Qe5 {[%emt 0:00:09]} c2 {[%emt 0:00:04]} 42. Rc1 {[%emt 0:00:06]} Qxb4 {[%emt 0:00:12]} (42... Rd8 $142 43. Kg2 Rd5) 43. Kh1 {[%emt 0:00:03]} Qb2 {[%emt 0:00:07] Weighted Error Value: White=0.96/Black=0.38} (43... Qb7+ $142 44. Kg1 Bh3 45. Re2 Rd8 46. Qa1 Qa7+ 47. Kh1 Rxa4 48. Qxa4 Qxa4 49. Rce1 Rd1 50. Kg1 Qa7+ 51. Kh1 Rxe1+ 52. Rxe1 Qb7+ 53. Kg1 Qg2#) 0-1